lending/lending_fUSD_20241211
["ID","MTS","AMOUNT","RATE_DAILY","PERIOD"]
[345030718,1733941841004,-500.0,0.00010958,2]
[345030719,1733941841013,-500.0,0.00010958,2]
[345030720,1733941841023,-500.0,0.00010958,2]
[345030721,1733941841032,-500.0,0.00010958,2]
[345030722,1733941841042,-545.3,0.00010958,2]
[345030723,1733941841051,-500.0,0.00010958,2]
[345030724,1733941841061,-500.0,0.00010958,2]
[345030725,1733941841070,-500.0,0.00010958,2]
[345030726,1733941841080,-500.0,0.00010958,2]
[345030727,1733941841090,-500.0,0.00010958,2]
[345030728,1733941841099,-500.0,0.00010958,2]
[345030729,1733941841109,-500.0,0.00010958,2]
[345030730,1733941841119,-500.0,0.00010958,2]
[345030731,1733941841128,-500.0,0.00010958,2]
[345030732,1733941841138,-500.0,0.00010958,2]
[345030733,1733941841147,-500.0,0.00010958,2]
[345030734,1733941841157,-500.0,0.00010958,2]
[345030735,1733941841166,-500.0,0.00010958,2]
[345030736,1733941841175,-500.0,0.00010958,2]
[345030737,1733941841184,-500.0,0.00010958,2]
[345030738,1733941841194,-500.0,0.00010958,2]
[345030739,1733941841203,-500.0,0.00010958,2]
[345030740,1733941841212,-500.0,0.00010958,2]
[345030741,1733941841222,-500.0,0.00010958,2]
[345030742,1733941841231,-500.0,0.00010958,2]
[345030743,1733941841240,-500.0,0.00010958,2]
[345030744,1733941841250,-500.0,0.00010958,2]
[345030745,1733941841259,-500.0,0.00010958,2]
[345030746,1733941841268,-500.0,0.00010958,2]
[345030747,1733941841277,-332.1,0.00010958,2]
[345030748,1733941841287,-500.0,0.00010958,2]
[345030749,1733941841296,-500.0,0.00010958,2]
[345030750,1733941841306,-500.0,0.00010958,2]
[345030751,1733941841316,-150.0,0.00010959,2]
[345030752,1733941841325,-12006.95702358,0.00010968,2]
[345030753,1733941841335,-622.31617254,0.00010968,2]
[345030754,1733941841344,-24805.1113213,0.00010969,2]
[345030755,1733941841353,-150.0,0.00010969,2]
[345030756,1733941841362,-622.31617254,0.00010969,2]
[345030757,1733941841371,-622.31617254,0.0001097,2]
[345030758,1733941841381,-24805.1113213,0.00010971,2]
[345030759,1733941841390,-24805.1113213,0.00010973,2]
[345030760,1733941841400,-2001.060429,0.00010973,2]
[345030761,1733941841409,-333.55704673,0.00010973,2]
[345030762,1733941841419,-908.673287,0.00010974,2]
[345030763,1733941841428,-12006.95702358,0.00010974,2]
[345030764,1733941841438,-255.0,0.00010974,2]
[345030765,1733941841447,-908.673287,0.00010976,2]
[345030766,1733941841456,-2054.87312375,0.00010976,2]
[345030767,1733941841466,-304.8001354,0.00010977,2]
[345030768,1733941841475,-12006.95702358,0.00010977,2]
[345030769,1733941841485,-24805.1113213,0.00010979,2]
[345030770,1733941841495,-2001.060429,0.00010979,2]
[345030771,1733941841504,-2001.060429,0.0001098,2]
[345030772,1733941841698,-14359.17207359,0.0001098,2]
[345030773,1733941841709,-2054.87312375,0.00010981,2]
[345030774,1733941841719,-14359.17207359,0.00010981,2]
[345030775,1733941841730,-908.673287,0.00010981,2]
[345030776,1733941841740,-2001.060429,0.00010982,2]
[345030777,1733941841749,-14359.17207359,0.00010984,2]
[345030778,1733941841759,-24805.1113213,0.00010984,2]
[345030779,1733941841773,-14359.17207359,0.00010984,2]
[345030780,1733941841783,-622.31617254,0.00010984,2]
[345030781,1733941841793,-908.673287,0.00010984,2]
[345030782,1733941841803,-2001.060429,0.00010985,2]
[345030783,1733941841814,-2054.87312375,0.00010986,2]
[345030784,1733941841823,-304.8001354,0.00010987,2]
[345030785,1733941841832,-304.8001354,0.00010987,2]
[345030786,1733941841842,-304.8001354,0.00010988,2]
[345030787,1733941841852,-1221.56,0.00010988,2]
[345030788,1733941841862,-500.0,0.00010988,2]
[345030789,1733941841872,-500.0,0.00010988,2]
[345030790,1733941841882,-645.90344333,0.00010988,2]
[345030791,1733941841891,-500.0,0.00010988,2]
[345030792,1733941841904,-500.0,0.00010988,2]
[345030793,1733941841913,-500.0,0.00010988,2]
[345030794,1733941841923,-500.0,0.00010988,2]
[345030795,1733941841932,-500.0,0.00010988,2]
[345030796,1733941841942,-829.94,0.00010988,2]
[345030797,1733941841951,-621.20045115,0.00010988,2]
[345030798,1733941841961,-462.74,0.00010988,2]
[345030799,1733941841971,-500.0,0.00010988,2]
[345030800,1733941841981,-500.0,0.00010988,2]
[345030801,1733941841991,-500.0,0.00010988,2]
[345030802,1733941842002,-500.0,0.00010988,2]
[345030803,1733941842012,-500.0,0.00010988,2]
[345030804,1733941842029,-500.0,0.00010988,2]
[345030805,1733941842039,-521.52,0.00010988,2]
[345030806,1733941842051,-500.0,0.00010988,2]
[345030807,1733941842061,-500.0,0.00010988,2]
[345030808,1733941842070,-500.0,0.00010988,2]
[345030809,1733941842081,-500.0,0.00010988,2]
[345030810,1733941842091,-500.0,0.00010988,2]
[345030811,1733941842101,-500.0,0.00010988,2]
[345030812,1733941842112,-500.0,0.00010988,2]
[345030813,1733941842122,-500.0,0.00010988,2]
[345030814,1733941842132,-500.0,0.00010988,2]
[345030815,1733941842142,-500.0,0.00010988,2]
[345030816,1733941842152,-500.0,0.00010988,2]
[345030817,1733941842162,-500.0,0.00010988,2]
[345030818,1733941842172,-500.0,0.00010988,2]
[345030819,1733941842182,-500.0,0.00010988,2]
[345030820,1733941842193,-500.0,0.00010988,2]
[345030821,1733941842203,-500.0,0.00010988,2]
[345030822,1733941842213,-500.0,0.00010988,2]
[345030823,1733941842223,-550.44202684,0.00010988,2]
[345030824,1733941842234,-500.0,0.00010988,2]
[345030826,1733941842243,-500.0,0.00010988,2]
[345030827,1733941842253,-500.0,0.00010988,2]
[345030828,1733941842262,-2001.060429,0.00010989,2]
[345030829,1733941842281,-333.55704673,0.0001099,2]
[345030830,1733941842291,-304.8001354,0.00010991,2]
[345030831,1733941842301,-333.55704673,0.00010992,2]
[345030832,1733941842311,-12006.95702358,0.00010993,2]
[345030833,1733941842320,-12006.95702358,0.00010994,2]
[345030834,1733941842330,-333.55704673,0.00010994,2]
[345030835,1733941842340,-333.55704673,0.00010994,2]
[345030836,1733941842350,-908.673287,0.00010994,2]
[345030837,1733941842360,-12006.95702358,0.00010995,2]
[345030838,1733941842370,-304.8001354,0.00010995,2]
[345030839,1733941842380,-2054.87312375,0.00010995,2]
[345030840,1733941842390,-908.673287,0.00010996,2]
[345030841,1733941842400,-2054.87312375,0.00010996,2]
[345030842,1733941842409,-333.55704673,0.00010997,2]
[345030843,1733941842419,-14359.17207359,0.00010997,2]
[345030844,1733941842430,-14359.17207359,0.00010997,2]
[345030845,1733941842439,-622.31617254,0.00010998,2]
[345030846,1733941842449,-500.0,0.00010998,2]
[345030847,1733941842459,-2054.87312375,0.00010999,2]
[345030848,1733941842468,-1377.39602517,0.00010999,2]
[345030849,1733941842478,-500.0,0.00010999,2]
[345030850,1733941842488,-500.0,0.00010999,2]
[345030851,1733941842497,-500.0,0.00010999,2]
[345030852,1733941842507,-500.0,0.00010999,2]
[345030853,1733941842517,-500.0,0.00010999,2]
[345030854,1733941842531,-500.0,0.00010999,2]
[345030855,1733941842540,-622.31617254,0.00011,2]
[345030856,1733941842550,-24805.1113213,0.00011,2]
[345030857,1733941842560,-3840.88816469,0.00011,2]
[345030858,1733941842570,-2308.393,0.00011,2]
[345030859,1733941842579,-178.073,0.00011,2]
[345030860,1733941842588,-359.61521257,0.00011,2]
[345030861,1733941842598,-166.39663466,0.00011,2]
[345030862,1733941842608,-105623.44714787,0.00011,2]
[345030863,1733941842618,-11361.41444143,0.00011,2]
[345030864,1733941842627,-413.9937261,0.00011,2]
[345030865,1733941842637,-8269.66827208,0.00011,2]
[345030866,1733941842647,-400.61491368,0.00011,2]
[345030867,1733941842656,-200.0,0.00011011,2]
[345030868,1733941842666,-150.0,0.00011019,2]
[345030869,1733941842675,-150.0,0.00011046,2]
[345030870,1733941842684,-150.0,0.0001105,2]
[345030871,1733941842693,-500.0,0.00011068,2]
[345030872,1733941842703,-500.0,0.00011068,2]
[345030873,1733941842712,-500.0,0.00011068,2]
[345030874,1733941842722,-500.0,0.00011068,2]
[345030875,1733941842731,-500.0,0.00011068,2]
[345030876,1733941842740,-500.0,0.00011068,2]
[345030877,1733941842750,-12754.0,0.00011068,2]
[345030878,1733941842759,-30111.0,0.00011068,2]
[345030879,1733941842776,-1958.0,0.00011068,2]
[345030880,1733941842786,-500.0,0.00011073,2]
[345030881,1733941842797,-275.16894386,0.00011073,2]
[345030882,1733941842807,-500.0,0.00011073,2]
[345030883,1733941842817,-503.64091238,0.00011073,2]
[345030884,1733941842827,-500.0,0.00011073,2]
[345030885,1733941842837,-435.46895825,0.00011088,2]
[345030886,1733941842849,-26393.03550652,0.00011096,2]
[345030887,1733941842860,-500.0,0.00011096,2]
[345030888,1733941842869,-500.0,0.00011097,2]
[345030889,1733941842879,-519.58,0.00011097,2]
[345030890,1733941842889,-500.0,0.00011097,2]
[345030891,1733941842898,-500.0,0.00011097,2]
[345030892,1733941842907,-500.0,0.00011097,2]
[345030893,1733941842917,-500.0,0.00011097,2]
[345030894,1733941842926,-500.0,0.00011097,2]
[345030895,1733941842939,-500.0,0.00011097,2]
[345030896,1733941842948,-243.097287,0.00011097,2]
[345030897,1733941842958,-500.0,0.00011097,2]
[345030898,1733941842968,-500.0,0.00011097,2]
[345030899,1733941842977,-500.0,0.00011097,2]
[345030900,1733941842987,-500.0,0.00011097,2]
[345030901,1733941842996,-549.98,0.00011097,2]
[345030902,1733941843006,-516.42,0.00011097,2]
[345030903,1733941843017,-500.0,0.00011097,2]
[345030904,1733941843030,-500.0,0.00011097,2]
[345030905,1733941843040,-500.0,0.00011097,2]
[345030906,1733941843050,-500.0,0.00011097,2]
[345030907,1733941843060,-500.0,0.00011097,2]
[345030908,1733941843070,-500.0,0.00011097,2]
[345030909,1733941843080,-500.0,0.00011097,2]
[345030910,1733941843090,-196.44,0.00011097,2]
[345030911,1733941843100,-500.0,0.00011097,2]
[345030912,1733941843110,-500.0,0.00011097,2]
[345030913,1733941843120,-500.0,0.00011097,2]
[345030914,1733941843130,-500.0,0.00011097,2]
[345030915,1733941843139,-500.0,0.00011097,2]
[345030916,1733941843149,-500.0,0.00011097,2]
[345030917,1733941843159,-500.0,0.00011097,2]
[345030918,1733941843169,-500.0,0.00011097,2]
[345030919,1733941843179,-252.7717364,0.00011097,2]
[345030920,1733941843190,-624.82978845,0.00011097,2]
[345030921,1733941843200,-500.0,0.00011097,2]
[345030922,1733941843210,-500.0,0.00011097,2]
[345030923,1733941843219,-500.0,0.00011097,2]
[345030926,1733941843229,-500.0,0.00011097,2]
[345030928,1733941843239,-500.0,0.00011097,2]
[345030929,1733941843248,-500.0,0.00011097,2]
[345030930,1733941843258,-500.0,0.00011097,2]
[345030931,1733941843272,-1081.63,0.00011097,2]
[345030932,1733941843282,-500.0,0.00011097,2]
[345030934,1733941843293,-500.0,0.00011097,2]
[345030935,1733941843302,-500.0,0.00011097,2]
[345030936,1733941843312,-500.0,0.00011097,2]
[345030937,1733941843322,-500.0,0.00011097,2]
[345030939,1733941843332,-500.0,0.00011097,2]
[345030941,1733941843342,-500.0,0.00011097,2]
[345030942,1733941843352,-500.0,0.00011097,2]
[345030943,1733941843361,-500.0,0.00011097,2]
[345030944,1733941843371,-500.0,0.00011097,2]
[345030945,1733941843380,-500.0,0.00011097,2]
[345030946,1733941843390,-500.0,0.00011097,2]
[345030947,1733941843400,-210.59755095,0.00011097,2]
[345030948,1733941843410,-500.0,0.00011097,2]
[345030949,1733941843421,-500.0,0.00011097,2]
[345030950,1733941843430,-500.0,0.00011097,2]
[345030951,1733941843440,-500.0,0.00011097,2]
[345030952,1733941843449,-500.0,0.00011097,2]
[345030953,1733941843459,-500.0,0.00011097,2]
[345030954,1733941843468,-500.0,0.00011097,2]
[345030955,1733941843478,-500.0,0.00011097,2]
[345030956,1733941843487,-500.0,0.00011097,2]
[345030957,1733941843497,-500.0,0.00011097,2]
[345030958,1733941843506,-500.0,0.00011097,2]
[345030959,1733941843519,-500.0,0.00011097,2]
[345030960,1733941843530,-500.0,0.00011097,2]
[345030961,1733941843540,-500.0,0.00011097,2]
[345030962,1733941843550,-500.0,0.00011097,2]
[345030963,1733941843560,-500.0,0.00011097,2]
[345030964,1733941843569,-500.0,0.00011097,2]
[345030965,1733941843577,-295.61838695,0.00011097,2]
[345030966,1733941843587,-500.2827423,0.00011097,2]
[345030967,1733941843597,-500.0,0.00011097,2]
[345030968,1733941843607,-531.0,0.00011097,2]
[345030969,1733941843616,-500.0,0.00011097,2]
[345030970,1733941843626,-734.1,0.00011097,2]
[345030971,1733941843635,-500.0,0.00011097,2]
[345030972,1733941843644,-500.0,0.00011097,2]
[345030973,1733941843652,-500.0,0.00011097,2]
[345030974,1733941843662,-500.0,0.00011097,2]
[345030975,1733941843672,-500.0,0.00011097,2]
[345030976,1733941843681,-500.0,0.00011097,2]
[345030977,1733941843691,-500.0,0.00011097,2]
[345030978,1733941843701,-577.16,0.00011097,2]
[345030979,1733941843710,-500.0,0.00011097,2]
[345030980,1733941843721,-500.0,0.00011097,2]
[345030981,1733941843731,-500.0,0.00011098,2]
[345030982,1733941843741,-500.0,0.00011098,2]
[345030983,1733941843751,-500.0,0.00011098,2]
[345030984,1733941843762,-518.49551989,0.00011098,2]
[345030985,1733941843777,-500.0,0.00011098,2]
[345030986,1733941843786,-500.0,0.00011098,2]
[345030987,1733941843795,-500.90424164,0.00011098,2]
[345030988,1733941843807,-522.01185624,0.00011098,2]
[345030989,1733941843816,-500.0,0.00011098,2]
[345030990,1733941843826,-500.0,0.00011098,2]
[345030991,1733941843836,-502.91567692,0.00011098,2]
[345030992,1733941843847,-500.0,0.00011098,2]
[345030993,1733941843857,-500.0,0.00011098,2]
[345030994,1733941843866,-504.57836878,0.00011098,2]
[345030995,1733941843876,-500.0,0.00011098,2]
[345030996,1733941843885,-500.0,0.00011098,2]
[345030997,1733941843895,-500.0,0.00011098,2]
[345030998,1733941843904,-525.03316813,0.00011098,2]
[345030999,1733941843914,-876.17,0.00011098,2]
[345031000,1733941843923,-876.17,0.00011098,2]
[345031001,1733941843933,-876.17,0.00011098,2]
[345031002,1733941843942,-876.17,0.00011098,2]
[345031003,1733941843952,-576.45,0.00011098,2]
[345031004,1733941843961,-576.45,0.00011098,2]
[345031005,1733941843971,-576.45,0.00011098,2]
[345031006,1733941843980,-576.45,0.00011098,2]
[345031007,1733941843990,-500.0,0.00011098,2]
[345031008,1733941843999,-500.0,0.00011098,2]
[345031009,1733941844008,-521.03,0.00011098,2]
[345031010,1733941844021,-1221.56,0.00011098,2]
[345031011,1733941844030,-309.13315518,0.00011098,2]
[345031012,1733941844039,-500.0,0.00011098,2]
[345031013,1733941844050,-386.819429,0.00011098,2]
[345031014,1733941844059,-500.0,0.00011098,2]
[345031015,1733941844069,-500.0,0.00011098,2]
[345031016,1733941844079,-500.0,0.00011098,2]
[345031017,1733941844089,-374.43622858,0.00011098,2]
[345031018,1733941844098,-500.0,0.00011098,2]
[345031019,1733941844108,-500.0,0.00011098,2]
[345031020,1733941844117,-829.94,0.00011098,2]
[345031021,1733941844127,-1081.63,0.00011098,2]
[345031022,1733941844137,-1081.63,0.00011098,2]
[345031023,1733941844147,-1081.63,0.00011098,2]
[345031024,1733941844156,-500.0,0.00011098,2]
[345031025,1733941844166,-500.0,0.00011098,2]
[345031026,1733941844175,-500.0,0.00011098,2]
[345031027,1733941844185,-500.0,0.00011098,2]
[345031028,1733941844195,-500.0,0.00011098,2]
[345031029,1733941844204,-500.0,0.00011098,2]
[345031030,1733941844214,-500.0,0.00011098,2]
[345031031,1733941844225,-500.0,0.00011098,2]
[345031032,1733941844235,-500.0,0.00011098,2]
[345031033,1733941844244,-500.0,0.00011098,2]
[345031034,1733941844254,-500.0,0.00011098,2]
[345031035,1733941844264,-500.0,0.00011098,2]
[345031036,1733941844274,-500.0,0.00011098,2]
[345031037,1733941844284,-500.0,0.00011098,2]
[345031038,1733941844294,-500.0,0.00011098,2]
[345031039,1733941844304,-500.0,0.00011098,2]
[345031040,1733941844314,-521.52,0.00011098,2]
[345031041,1733941844324,-500.0,0.00011098,2]
[345031042,1733941844334,-500.0,0.00011098,2]
[345031043,1733941844343,-500.0,0.00011098,2]
[345031044,1733941844353,-500.0,0.00011098,2]
[345031045,1733941844363,-500.0,0.00011098,2]
[345031046,1733941844373,-500.0,0.00011098,2]
[345031047,1733941844383,-412.16397462,0.00011098,2]
[345031048,1733941844392,-539.18,0.00011098,2]
[345031049,1733941844402,-500.0,0.00011098,2]
[345031050,1733941844412,-500.0,0.00011098,2]
[345031051,1733941844421,-551.14,0.00011098,2]
[345031052,1733941844431,-500.0,0.00011098,2]
[345031053,1733941844440,-500.0,0.00011098,2]
[345031054,1733941844450,-337.14988874,0.00011098,2]
[345031055,1733941844459,-500.0,0.00011098,2]
[345031056,1733941844469,-500.0,0.00011098,2]
[345031057,1733941844478,-500.0,0.00011098,2]
[345031058,1733941844489,-500.0,0.00011098,2]
[345031059,1733941844499,-500.0,0.00011098,2]
[345031060,1733941844508,-500.0,0.00011098,2]
[345031061,1733941844519,-500.0,0.00011098,2]
[345031062,1733941844529,-500.0,0.00011098,2]
[345031063,1733941844538,-500.0,0.00011098,2]
[345031064,1733941844548,-500.0,0.00011098,2]
[345031065,1733941844557,-198.93,0.00011098,2]
[345031066,1733941844566,-355.39,0.00011098,2]
[345031067,1733941844575,-500.0,0.00011098,2]
[345031068,1733941844586,-3876.5,0.00011099,2]
[345031069,1733941844595,-500.0,0.00011099,2]
[345031070,1733941844605,-159.92730509,0.00011099,2]
[345031071,1733941844614,-500.0,0.00011099,2]
[345031073,1733941844623,-500.0,0.00011099,2]
[345031075,1733941844633,-436.58729809,0.00011099,2]
[345031077,1733941844643,-178.4172085,0.00011099,2]
[345031079,1733941844652,-500.0,0.00011099,2]
[345031081,1733941844663,-500.0,0.00011099,2]
[345031083,1733941844672,-500.0,0.00011099,2]
[345031085,1733941844682,-500.0,0.00011099,2]
[345031087,1733941844692,-500.0,0.00011099,2]
[345031089,1733941844703,-500.0,0.00011099,2]
[345031091,1733941844712,-392.99352073,0.00011099,2]
[345031093,1733941844722,-500.0,0.00011099,2]
[345031094,1733941844732,-500.0,0.00011099,2]
[345031095,1733941844742,-500.0,0.00011099,2]
[345031096,1733941844751,-500.0,0.00011099,2]
[345031097,1733941844760,-500.0,0.00011099,2]
[345031098,1733941844776,-500.0,0.00011099,2]
[345031099,1733941844786,-500.0,0.00011099,2]
[345031100,1733941844795,-500.0,0.00011099,2]
[345031101,1733941844804,-500.0,0.00011099,2]
[345031102,1733941844814,-563.13,0.00011099,2]
[345031103,1733941844823,-500.0,0.00011099,2]
[345031104,1733941844833,-500.0,0.00011099,2]
[345031105,1733941844843,-631.29059957,0.00011099,2]
[345031106,1733941844852,-500.0,0.00011099,2]
[345031107,1733941844861,-500.0,0.00011099,2]
[345031108,1733941844870,-500.0,0.00011099,2]
[345031109,1733941844880,-500.0,0.00011099,2]
[345031110,1733941844889,-500.0,0.00011099,2]
[345031111,1733941844898,-500.0,0.00011099,2]
[345031112,1733941844907,-564.25655297,0.00011099,2]
[345031113,1733941844916,-500.0,0.00011099,2]
[345031114,1733941844925,-500.0,0.00011099,2]
[345031115,1733941844935,-500.0,0.00011099,2]
[345031116,1733941844944,-500.0,0.00011099,2]
[345031117,1733941844953,-612.90779466,0.00011099,2]
[345031118,1733941844962,-500.0,0.00011099,2]
[345031119,1733941844971,-500.0,0.00011099,2]
[345031120,1733941844981,-500.0,0.00011099,2]
[345031121,1733941844990,-500.0,0.00011099,2]
[345031122,1733941845000,-500.0,0.00011099,2]
[345031123,1733941845009,-500.0,0.00011099,2]
[345031124,1733941845022,-500.0,0.00011099,2]
[345031125,1733941845032,-500.0,0.00011099,2]
[345031126,1733941845042,-500.0,0.00011099,2]
[345031127,1733941845051,-272.45,0.00011099,2]
[345031128,1733941845061,-549.98,0.00011099,2]
[345031129,1733941845070,-549.98,0.00011099,2]
[345031130,1733941845080,-549.98,0.00011099,2]
[345031131,1733941845089,-549.98,0.00011099,2]
[345031132,1733941845099,-549.98,0.00011099,2]
[345031133,1733941845108,-549.98,0.00011099,2]
[345031134,1733941845118,-549.98,0.00011099,2]
[345031135,1733941845127,-549.98,0.00011099,2]
[345031136,1733941845136,-549.98,0.00011099,2]
[345031137,1733941845146,-549.98,0.00011099,2]
[345031138,1733941845155,-549.98,0.00011099,2]
[345031139,1733941845165,-549.98,0.00011099,2]
[345031140,1733941845174,-549.98,0.00011099,2]
[345031141,1733941845184,-549.98,0.00011099,2]
[345031142,1733941845193,-549.98,0.00011099,2]
[345031143,1733941845202,-549.98,0.00011099,2]
[345031144,1733941845212,-549.98,0.00011099,2]
[345031145,1733941845221,-549.98,0.00011099,2]
[345031146,1733941845231,-549.98,0.00011099,2]
[345031147,1733941845241,-992.2738,0.00011099,2]
[345031148,1733941845250,-549.98,0.00011099,2]
[345031149,1733941845259,-549.98,0.00011099,2]
[345031150,1733941845271,-550.11,0.00011099,2]
[345031152,1733941845281,-876.17,0.00011099,2]
[345031153,1733941845290,-876.17,0.00011099,2]
[345031154,1733941845299,-876.17,0.00011099,2]
[345031155,1733941845309,-876.17,0.00011099,2]
[345031156,1733941845318,-876.17,0.00011099,2]
[345031157,1733941845328,-876.17,0.00011099,2]
[345031158,1733941845337,-876.17,0.00011099,2]
[345031159,1733941845347,-876.17,0.00011099,2]
[345031160,1733941845356,-876.17,0.00011099,2]
[345031161,1733941845366,-876.17,0.00011099,2]
[345031162,1733941845375,-876.17,0.00011099,2]
[345031163,1733941845384,-876.17,0.00011099,2]
[345031164,1733941845394,-876.17,0.00011099,2]
[345031165,1733941845403,-876.17,0.00011099,2]
[345031166,1733941845412,-876.17,0.00011099,2]
[345031167,1733941845421,-876.17,0.00011099,2]
[345031168,1733941845430,-876.17,0.00011099,2]
[345031169,1733941845439,-876.17,0.00011099,2]
[345031170,1733941845448,-876.17,0.00011099,2]
[345031171,1733941845458,-876.39359751,0.00011099,2]
[345031172,1733941845467,-576.45,0.00011099,2]
[345031173,1733941845476,-576.45,0.00011099,2]
[345031174,1733941845485,-576.45,0.00011099,2]
[345031175,1733941845494,-576.45,0.00011099,2]
[345031176,1733941845503,-576.45,0.00011099,2]
[345031177,1733941845513,-576.45,0.00011099,2]
[345031178,1733941845525,-576.45,0.00011099,2]
[345031179,1733941845534,-576.45,0.00011099,2]
[345031180,1733941845543,-576.45,0.00011099,2]
[345031181,1733941845552,-576.45,0.00011099,2]
[345031182,1733941845561,-576.45,0.00011099,2]
[345031183,1733941845571,-576.45,0.00011099,2]
[345031184,1733941845579,-576.45,0.00011099,2]
[345031185,1733941845588,-576.45,0.00011099,2]
[345031186,1733941845598,-576.45,0.00011099,2]
[345031187,1733941845608,-576.45,0.00011099,2]
[345031188,1733941845617,-576.45,0.00011099,2]
[345031189,1733941845626,-576.45,0.00011099,2]
[345031190,1733941845635,-576.45,0.00011099,2]
[345031191,1733941845644,-576.64712188,0.00011099,2]
[345031192,1733941845654,-500.0,0.00011099,2]
[345031193,1733941845663,-500.0,0.00011099,2]
[345031194,1733941845672,-500.0,0.00011099,2]
[345031195,1733941845681,-500.0,0.00011099,2]
[345031196,1733941845690,-500.0,0.00011099,2]
[345031197,1733941845700,-500.0,0.00011099,2]
[345031198,1733941845709,-500.0,0.00011099,2]
[345031199,1733941845718,-500.0,0.00011099,2]
[345031200,1733941845727,-500.0,0.00011099,2]
[345031201,1733941845737,-500.0,0.00011099,2]
[345031202,1733941845747,-500.0,0.00011099,2]
[345031203,1733941845927,-622.83,0.00011099,2]
[345031204,1733941845937,-1221.56,0.00011099,2]
[345031205,1733941845947,-1221.56,0.00011099,2]
[345031206,1733941845958,-1221.56,0.00011099,2]
[345031207,1733941845967,-1221.56,0.00011099,2]
[345031208,1733941845977,-1221.56,0.00011099,2]
[345031209,1733941845986,-1221.56,0.00011099,2]
[345031210,1733941845996,-1221.56,0.00011099,2]
[345031211,1733941846006,-1221.56,0.00011099,2]
[345031212,1733941846017,-1221.56,0.00011099,2]
[345031213,1733941846027,-1221.56,0.00011099,2]
[345031214,1733941846036,-1221.56,0.00011099,2]
[345031215,1733941846046,-1221.56,0.00011099,2]
[345031216,1733941846055,-1221.56,0.00011099,2]
[345031217,1733941846064,-1221.56,0.00011099,2]
[345031218,1733941846074,-1221.56,0.00011099,2]
[345031219,1733941846083,-1221.56,0.00011099,2]
[345031220,1733941846093,-1221.56,0.00011099,2]
[345031221,1733941846103,-1221.56,0.00011099,2]
[345031222,1733941846113,-1221.56,0.00011099,2]
[345031223,1733941846123,-1221.56,0.00011099,2]
[345031224,1733941846132,-1221.57810556,0.00011099,2]
[345031225,1733941846142,-500.0,0.00011099,2]
[345031226,1733941846151,-632.7,0.00011099,2]
[345031227,1733941846161,-500.0,0.00011099,2]
[345031228,1733941846171,-500.0,0.00011099,2]
[345031229,1733941846180,-500.0,0.00011099,2]
[345031230,1733941846190,-500.0,0.00011099,2]
[345031231,1733941846199,-500.0,0.00011099,2]
[345031232,1733941846209,-500.0,0.00011099,2]
[345031233,1733941846219,-500.0,0.00011099,2]
[345031234,1733941846228,-500.0,0.00011099,2]
[345031235,1733941846238,-500.0,0.00011099,2]
[345031236,1733941846247,-500.0,0.00011099,2]